fUSD/lending_fUSD_20240805
["ID","MTS","AMOUNT","RATE_DAILY","PERIOD"]
[334194380,1722823866133,-162.77,0.00020091,2]
[334194381,1722823866148,-151.71,0.00020096,2]
[334194382,1722823866157,-1010.0,0.000201,2]
[334194383,1722823866167,-500.0,0.00020106,2]
[334194384,1722823866176,-500.0,0.00020131,2]
[334194385,1722823866186,-500.0,0.00020147,2]
[334194386,1722823866196,-1800.0,0.00020163,2]
[334194387,1722823866206,-500.0,0.00020179,2]
[334194388,1722823866216,-500.0,0.00020183,2]
[334194389,1722823866226,-1800.0,0.00020228,2]
[334194390,1722823866236,-1000.0,0.00020256,2]
[334194391,1722823866245,-500.0,0.00020275,2]
[334194392,1722823866254,-500.0,0.00020281,2]
[334194393,1722823866264,-1800.0,0.00020288,2]
[334194394,1722823866274,-500.0,0.00020298,2]
[334194395,1722823866283,-3851.27,0.000203,2]
[334194396,1722823866293,-500.0,0.00020306,2]
[334194397,1722823866302,-500.0,0.00020345,2]
[334194398,1722823866311,-500.0,0.00020364,2]
[334194399,1722823866321,-500.0,0.0002039,2]
[334194400,1722823866330,-617.03587465,0.00020406,2]
[334194401,1722823866340,-446.0,0.00020427,2]
[334194402,1722823866349,-451.0,0.00020427,2]
[334194403,1722823866358,-150.0,0.00020427,2]
[334194404,1722823866368,-1552.0,0.00020427,2]
[334194405,1722823866377,-811.0,0.00020427,2]
[334194406,1722823866396,-550.0,0.00020427,2]
[334194407,1722823866405,-1369.0,0.00020427,2]
[334194408,1722823866415,-150.0,0.00020427,2]
[334194409,1722823866425,-1598.575,0.00020427,2]
[334194410,1722823866439,-5127.0,0.00020427,2]
[334194411,1722823866449,-722.324,0.00020427,2]
[334194412,1722823866460,-977.946,0.00020427,2]
[334194413,1722823866470,-1671.0,0.00020427,2]
[334194414,1722823866481,-500.0,0.00020439,2]
[334194415,1722823866490,-21737.0,0.0002044,2]
[334194416,1722823866499,-150.0,0.00020441,2]
[334194417,1722823866510,-1000.0,0.00020456,2]
[334194418,1722823866520,-500.0,0.00020465,2]
[334194419,1722823866530,-500.0,0.00020469,2]
[334194420,1722823866539,-172.98,0.00020548,2]
[334194421,1722823866550,-1375.6601076,0.00020614,2]
[334194422,1722823866560,-1800.0,0.00020622,2]
[334194423,1722823866570,-1800.0,0.00020661,2]
[334194424,1722823866579,-500.0,0.00020683,2]
[334194425,1722823866588,-1800.0,0.00020711,2]
[334194426,1722823866597,-500.0,0.00020716,2]
[334194427,1722823866607,-1800.0,0.00020726,2]
[334194428,1722823866616,-600.0,0.00020726,2]
[334194429,1722823866626,-1000.0,0.00020751,2]
[334194430,1722823866645,-500.0,0.00020751,2]
[334194431,1722823866654,-166.0016685,0.00020759,2]
[334194432,1722823866663,-196.58439707,0.00020761,2]
[334194433,1722823866672,-500.0,0.00020776,2]
[334194434,1722823866682,-600.0,0.00020789,2]
[334194435,1722823866691,-500.0,0.00020792,2]
[334194436,1722823866701,-1800.0,0.00020822,2]
[334194437,1722823866710,-500.0,0.00020856,2]
[334194438,1722823866719,-600.0,0.00020869,2]
[334194439,1722823866729,-1000.0,0.00020884,2]
[334194440,1722823866739,-1000.0,0.00020896,2]
[334194441,1722823866748,-155.0,0.00020899,2]
[334194442,1722823866759,-155.0,0.00020899,2]
[334194443,1722823866768,-6700.0,0.000209,7]
[334194444,1722823866778,-500.0,0.00020927,2]
[334194445,1722823866788,-500.0,0.00020981,2]
[334194446,1722823866798,-225.59278676,0.00021,2]
[334194447,1722823866808,-800.0,0.00021,2]
[334194448,1722823866818,-1000.0,0.00021004,2]
[334194449,1722823866827,-500.0,0.00021075,2]
[334194450,1722823866836,-500.0,0.00021109,2]
[334194451,1722823866846,-1800.0,0.00021144,2]
[334194452,1722823866855,-1000.0,0.0002118,2]
[334194453,1722823866865,-1800.0,0.00021196,2]
[334194454,1722823866874,-314.72218928,0.00021203,2]
[334194455,1722823866892,-500.0,0.00021215,2]
[334194456,1722823866902,-500.0,0.00021217,2]
[334194457,1722823866912,-600.0,0.00021219,2]
[334194458,1722823866921,-1800.0,0.00021226,2]
[334194459,1722823866931,-500.0,0.00021238,2]
[334194460,1722823866940,-1800.0,0.00021251,2]
[334194461,1722823866950,-500.0,0.00021268,2]
[334194462,1722823866959,-1800.0,0.00021308,2]
[334194463,1722823866969,-500.0,0.00021327,2]
[334194464,1722823866979,-600.0,0.00021328,2]
[334194465,1722823866988,-500.0,0.00021336,2]
[334194466,1722823866998,-500.0,0.00021336,2]
[334194467,1722823867007,-1800.0,0.00021363,2]
[334194468,1722823867017,-1800.0,0.00021366,2]
[334194469,1722823867027,-500.0,0.00021375,2]
[334194470,1722823867037,-500.0,0.00021378,2]
[334194471,1722823867046,-500.0,0.00021452,2]
[334194472,1722823867056,-600.0,0.00021465,2]
[334194473,1722823867065,-600.0,0.00021486,2]
[334194474,1722823867075,-3851.27,0.000215,2]
[334194475,1722823867085,-1927.0,0.000215,2]
[334194476,1722823867095,-1000.0,0.00021527,2]
[334194477,1722823867104,-500.0,0.0002154,2]
[334194478,1722823867113,-152.0,0.00021559,3]
[334194479,1722823867123,-500.0,0.00021574,2]
[334194480,1722823867140,-4173.09,0.00021589,30]
[334194481,1722823867150,-500.0,0.00021598,2]
[334194482,1722823867159,-1060.45,0.00021622,2]
[334194483,1722823867169,-973.33342044,0.00021636,2]
[334194484,1722823867178,-500.0,0.00021718,2]
[334194485,1722823867188,-500.0,0.00021774,2]
[334194486,1722823867197,-1800.0,0.0002178,2]
[334194487,1722823867206,-1800.0,0.00021788,2]
[334194488,1722823867216,-532.1848691,0.00021796,2]
[334194489,1722823867226,-150.0,0.00021811,2]
[334194490,1722823867236,-150.0,0.00021811,2]
[334194491,1722823867247,-150.0,0.00021811,2]
[334194492,1722823867256,-150.0,0.00021811,2]
[334194493,1722823867266,-150.0,0.00021811,2]
[334194494,1722823867276,-150.0,0.00021811,2]
[334194495,1722823867286,-500.0,0.00021824,2]
[334194496,1722823867296,-1000.0,0.00021828,2]
[334194497,1722823867306,-1800.0,0.00021832,2]
[334194498,1722823867315,-500.0,0.00021891,2]
[334194499,1722823867325,-1001.0,0.000219,2]
[334194500,1722823867335,-250.0,0.000219,2]
[334194501,1722823867345,-600.0,0.000219,2]
[334194502,1722823867354,-494.26093171,0.000219,2]
[334194503,1722823867364,-796.76508243,0.000219,2]
[334194504,1722823867374,-200.0,0.000219,2]
[334194505,1722823867392,-200.0,0.000219,2]
[334194506,1722823867402,-2000.0,0.00021917,2]
[334194507,1722823867411,-486.83,0.00021918,2]
[334194508,1722823867422,-453.79,0.00021918,2]
[334194509,1722823867435,-150.0,0.00021918,2]
[334194510,1722823867445,-150.0,0.00021918,2]
[334194511,1722823867458,-150.0,0.00021918,2]
[334194512,1722823867471,-150.0,0.00021918,2]
[334194513,1722823867484,-150.0,0.00021918,2]
[334194514,1722823867495,-150.0,0.00021918,2]
[334194515,1722823867506,-150.0,0.00021918,2]
[334194516,1722823867516,-150.0,0.00021918,2]
[334194517,1722823867527,-150.0,0.00021918,2]
[334194518,1722823867537,-150.0,0.00021918,2]
[334194519,1722823867552,-150.0,0.00021918,2]
[334194520,1722823867561,-150.0,0.00021918,2]
[334194521,1722823867572,-150.0,0.00021918,2]
[334194522,1722823867581,-150.0,0.00021918,2]
[334194523,1722823867591,-150.0,0.00021918,2]
[334194524,1722823867601,-150.0,0.00021918,2]
[334194525,1722823867610,-150.0,0.00021918,2]
[334194526,1722823867620,-150.0,0.00021918,2]
[334194527,1722823867634,-150.0,0.00021918,2]
[334194528,1722823867649,-150.0,0.00021918,2]
[334194529,1722823867659,-150.0,0.00021918,2]
[334194530,1722823867669,-150.0,0.00021918,2]
[334194531,1722823867679,-1800.0,0.00021937,2]
[334194532,1722823867689,-500.0,0.00021956,2]
[334194533,1722823867701,-153.305931,0.00021959,2]
[334194534,1722823867712,-500.0,0.00021993,2]
[334194535,1722823867721,-300.0,0.00021999,2]
[334194536,1722823867732,-150.0,0.00021999,10]
[334194537,1722823867742,-150.0,0.00021999,10]
[334194538,1722823867752,-150.0,0.00021999,10]
[334194539,1722823867762,-150.0,0.00021999,10]
[334194540,1722823867771,-150.0,0.00021999,10]
[334194541,1722823867781,-150.0,0.00021999,10]
[334194542,1722823867791,-150.0,0.00021999,10]
[334194543,1722823867801,-150.0,0.00021999,10]
[334194544,1722823867811,-150.0,0.00021999,10]
[334194545,1722823867820,-150.0,0.00021999,10]
[334194546,1722823867830,-150.0,0.00021999,10]
[334194547,1722823867839,-150.0,0.00021999,10]
[334194548,1722823867849,-150.0,0.00021999,10]
[334194549,1722823867859,-150.0,0.00021999,10]
[334194550,1722823867868,-150.0,0.00021999,10]
[334194551,1722823867878,-150.0,0.00021999,10]
[334194552,1722823867894,-161.38976738,0.00021999,10]
[334194553,1722823867904,-150.0,0.00021999,10]
[334194554,1722823867913,-150.0,0.00021999,10]
[334194555,1722823867923,-150.0,0.00021999,10]
[334194556,1722823867933,-150.0,0.00021999,10]
[334194557,1722823867943,-371.84314504,0.00022,2]
[334194558,1722823867953,-1271.40939888,0.00022,2]
[334194559,1722823867963,-3600.0,0.00022,23]
[334194560,1722823867973,-797.78571024,0.00022,2]
[334194561,1722823867983,-500.0,0.00022046,2]
[334194562,1722823867992,-500.0,0.00022085,2]
[334194563,1722823868002,-500.0,0.00022119,2]
[334194564,1722823868011,-500.0,0.00022181,2]
[334194565,1722823868021,-1800.0,0.0002219,2]
[334194566,1722823868031,-2000.0,0.00022191,2]
[334194567,1722823868040,-1000.0,0.00022232,2]
[334194568,1722823868050,-1800.0,0.00022237,2]
[334194569,1722823868059,-1800.0,0.00022259,2]
[334194570,1722823868070,-500.0,0.0002228,2]
[334194571,1722823868079,-160.86963982,0.00022311,2]
[334194572,1722823868089,-1800.0,0.00022312,2]
[334194573,1722823868099,-500.0,0.00022321,2]
[334194574,1722823868109,-500.0,0.00022339,2]
[334194575,1722823868119,-500.0,0.00022351,2]
[334194576,1722823868128,-500.0,0.00022367,2]
[334194577,1722823868146,-600.0,0.00022435,2]
[334194578,1722823868155,-314.72218928,0.00022435,2]
[334194579,1722823868165,-183.377222,0.00022438,2]
[334194580,1722823868175,-549.332031,0.00022438,2]
[334194581,1722823868185,-215.884857,0.00022438,2]
[334194582,1722823868195,-1357.623329,0.00022438,2]
[334194583,1722823868205,-171.63604,0.00022438,2]
[334194584,1722823868215,-179.629345,0.00022438,2]
[334194585,1722823868224,-1045.04805,0.00022438,2]
[334194586,1722823868234,-1562.642676,0.00022438,2]
[334194587,1722823868244,-169.132493,0.00022438,2]
[334194588,1722823868255,-2000.0,0.00022465,2]
[334194589,1722823868265,-150.0,0.00022495,2]
[334194590,1722823868275,-500.0,0.000225,2]
[334194591,1722823868285,-1800.0,0.00022506,2]
[334194592,1722823868295,-1000.0,0.0002251,2]
[334194593,1722823868306,-500.0,0.00022512,2]
[334194594,1722823868317,-1000.0,0.00022557,2]
[334194595,1722823868328,-500.0,0.00022564,2]
[334194596,1722823868340,-500.0,0.00022597,2]
[334194597,1722823868352,-3851.27,0.000226,7]
[334194598,1722823868364,-500.0,0.00022618,2]
[334194599,1722823868575,-600.0,0.00022669,2]
[334194600,1722823868587,-1800.0,0.00022696,2]
[334194601,1722823868597,-1800.0,0.00022697,2]
[334194602,1722823868608,-2255.73153898,0.000227,2]
[334194603,1722823868618,-500.0,0.00022706,2]
[334194604,1722823868628,-185.96509916,0.00022712,4]
[334194605,1722823868650,-549.332031,0.00022718,2]
[334194606,1722823868660,-1357.623329,0.00022718,2]
[334194607,1722823868669,-1045.04805,0.00022718,2]
[334194608,1722823868680,-1562.642676,0.00022718,2]
[334194609,1722823868690,-152.0,0.00022735,4]
[334194610,1722823868701,-2000.0,0.00022739,2]
[334194611,1722823868710,-1375.6601076,0.00022757,2]
[334194612,1722823868720,-500.0,0.00022791,2]
[334194613,1722823868730,-500.0,0.00022805,2]
[334194614,1722823868740,-679.17995646,0.00022814,2]
[334194615,1722823868751,-196.58439707,0.0002283,2]
[334194616,1722823868761,-600.0,0.00022835,2]
[334194617,1722823868771,-500.0,0.0002286,2]
[334194618,1722823868782,-500.0,0.00022877,2]
[334194619,1722823868793,-1800.0,0.00022921,2]
[334194620,1722823868805,-1800.0,0.00022923,2]
[334194621,1722823868816,-600.0,0.00022929,2]
[334194622,1722823868826,-500.0,0.00022941,2]
[334194623,1722823868836,-500.0,0.00022959,2]
[334194624,1722823868846,-500.0,0.00022972,2]
[334194625,1722823868856,-243.40322561,0.00022996,2]
[334194626,1722823868866,-549.332031,0.00022999,2]
[334194627,1722823868876,-1357.623329,0.00022999,2]
[334194628,1722823868894,-171.63604,0.00022999,2]
[334194629,1722823868904,-1045.04805,0.00022999,2]
[334194630,1722823868914,-1562.642676,0.00022999,2]
[334194631,1722823868923,-300.0,0.00022999,2]
[334194632,1722823868933,-150.0,0.00022999,10]
[334194633,1722823868943,-150.0,0.00022999,10]
[334194634,1722823868953,-150.0,0.00022999,10]
[334194635,1722823868963,-150.0,0.00022999,10]
[334194636,1722823868972,-150.0,0.00022999,10]
[334194637,1722823868982,-150.0,0.00022999,10]
[334194638,1722823868992,-150.0,0.00022999,10]
[334194639,1722823869002,-150.0,0.00022999,10]
[334194640,1722823869011,-150.0,0.00022999,10]
[334194641,1722823869021,-150.0,0.00022999,10]
[334194642,1722823869031,-150.0,0.00022999,10]
[334194643,1722823869041,-150.0,0.00022999,10]
[334194644,1722823869050,-150.0,0.00022999,10]
[334194645,1722823869060,-150.0,0.00022999,10]
[334194646,1722823869070,-150.0,0.00022999,10]
[334194647,1722823869080,-150.0,0.00022999,10]
[334194648,1722823869090,-150.0,0.00022999,10]
[334194649,1722823869099,-150.0,0.00022999,10]
[334194650,1722823869110,-150.0,0.00022999,10]
[334194651,1722823869120,-150.0,0.00022999,10]
[334194652,1722823869137,-3268.68656456,0.00023,24]
[334194653,1722823869151,-1097.338501,0.00023,2]
[334194654,1722823869161,-850.0,0.00023,2]
[334194655,1722823869172,-155.0,0.00023,2]
[334194656,1722823869183,-173.0,0.00023,2]
[334194657,1722823869193,-2000.0,0.00023013,2]
[334194658,1722823869203,-554.28856426,0.00023014,2]
[334194659,1722823869213,-1800.0,0.00023024,2]
[334194660,1722823869223,-500.0,0.00023036,2]
[334194661,1722823869233,-150.0,0.00023071,2]
[334194662,1722823869244,-420.67,0.00023096,2]
[334194663,1722823869254,-1183.46,0.00023096,2]
[334194664,1722823869264,-834.54,0.00023096,2]
[334194665,1722823869274,-420.62,0.00023096,2]
[334194666,1722823869285,-834.54,0.00023096,2]
[334194667,1722823869295,-420.62,0.00023096,2]
[334194668,1722823869306,-834.54,0.00023096,2]
[334194669,1722823869316,-420.62,0.00023096,2]
[334194670,1722823869325,-834.54,0.00023096,2]
[334194671,1722823869335,-420.62,0.00023096,2]
[334194672,1722823869345,-1669.08,0.00023096,2]
[334194673,1722823869355,-154.39,0.00023096,2]
[334194674,1722823869365,-500.0,0.00023161,2]
[334194675,1722823869375,-500.0,0.00023161,2]
[334194676,1722823869393,-1800.0,0.00023162,2]
[334194677,1722823869404,-500.0,0.0002319,2]
[334194678,1722823869414,-180.0,0.00023205,2]
[334194679,1722823869424,-500.0,0.00023232,2]
[334194680,1722823869437,-500.0,0.00023248,2]
[334194681,1722823869447,-500.0,0.00023259,2]
[334194682,1722823869457,-500.0,0.00023265,2]
[334194683,1722823869468,-549.332031,0.00023279,2]
[334194684,1722823869480,-1357.623329,0.00023279,2]
[334194685,1722823869489,-1045.04805,0.00023279,2]
[334194686,1722823869499,-1562.642676,0.00023279,2]
[334194687,1722823869509,-2000.0,0.00023287,2]
[334194688,1722823869519,-380.0,0.00023288,2]
[334194689,1722823869530,-380.0,0.00023288,2]
[334194690,1722823869540,-380.0,0.00023288,2]
[334194691,1722823869549,-380.0,0.00023288,2]
[334194692,1722823869559,-380.0,0.00023288,2]
[334194693,1722823869569,-380.0,0.00023288,2]
[334194694,1722823869580,-380.0,0.00023288,2]
[334194695,1722823869590,-380.0,0.00023288,2]
[334194696,1722823869600,-396.04,0.00023288,2]
[334194697,1722823869609,-500.0,0.00023289,2]
[334194698,1722823869620,-251.52409697,0.000233,2]
[334194699,1722823869636,-1800.0,0.0002332,2]
[334194700,1722823869650,-500.0,0.00023338,2]
[334194701,1722823869661,-150.0,0.0002337,2]
[334194702,1722823869671,-530.56,0.0002337,2]
[334194703,1722823869682,-150.0,0.0002337,2]
[334194704,1722823869692,-356.25,0.0002337,2]
[334194705,1722823869703,-286.7,0.0002337,2]
[334194706,1722823869713,-150.0,0.0002337,2]
[334194707,1722823869722,-150.44,0.0002337,2]
[334194708,1722823869732,-500.0,0.00023423,2]
[334194709,1722823869742,-446.0,0.00023427,2]
[334194710,1722823869751,-451.0,0.00023427,2]
[334194711,1722823869761,-1552.0,0.00023427,2]
[334194712,1722823869771,-811.0,0.00023427,2]
[334194713,1722823869781,-1671.0,0.00023427,2]
[334194714,1722823869791,-500.0,0.0002344,2]
[334194715,1722823869801,-21737.0,0.0002344,2]
[334194716,1722823869810,-500.0,0.00023442,2]
[334194717,1722823869820,-500.0,0.00023451,2]
[334194718,1722823869829,-500.0,0.00023521,2]
[334194719,1722823869838,-600.0,0.00023524,2]
[334194720,1722823869849,-1930.8034395,0.0002354,2]
[334194721,1722823869859,-549.332031,0.00023559,2]
[334194722,1722823869869,-1357.623329,0.00023559,2]
[334194723,1722823869879,-171.63604,0.00023559,2]
[334194724,1722823869898,-1045.04805,0.00023559,2]
[334194725,1722823869908,-1562.642676,0.00023559,2]
[334194726,1722823869917,-169.132493,0.00023559,2]
[334194727,1722823869927,-2000.0,0.00023561,2]
[334194728,1722823869936,-500.0,0.00023566,2]
[334194729,1722823869946,-500.0,0.00023585,2]
[334194730,1722823869956,-150.0,0.00023648,2]
[334194731,1722823869965,-314.72218928,0.00023668,2]
[334194732,1722823869975,-1800.0,0.0002368,2]
[334194733,1722823869985,-3851.27,0.000237,7]
[334194734,1722823869995,-1800.0,0.00023723,2]
[334194735,1722823870005,-1000.0,0.00023735,2]
[334194736,1722823870014,-500.0,0.00023775,2]
[334194737,1722823870024,-500.0,0.0002378,2]
[334194738,1722823870034,-500.0,0.00023785,2]
[334194739,1722823870044,-500.0,0.00023791,2]
[334194740,1722823870053,-500.0,0.00023797,2]
[334194741,1722823870063,-2000.0,0.00023835,2]
[334194742,1722823870073,-1060.45,0.00023856,2]
[334194743,1722823870082,-155.0,0.00023873,2]
[334194744,1722823870092,-194.5,0.0002388,30]
[334194745,1722823870102,-500.0,0.00023883,2]
[334194746,1722823870111,-150.5,0.0002389,30]
[334194747,1722823870122,-1000.0,0.00023891,2]
[334194748,1722823870138,-600.0,0.00023905,2]
[334194749,1722823870149,-500.0,0.00023906,2]
[334194750,1722823870160,-500.0,0.00023909,2]
[334194751,1722823870170,-152.0,0.00023912,5]
[334194752,1722823870180,-500.0,0.00023962,7]
[334194753,1722823870189,-1800.0,0.00023968,2]
[334194754,1722823870199,-500.0,0.00023996,2]
[334194755,1722823870209,-210.55933357,0.00024,2]
[334194756,1722823870219,-155.20976702,0.00024,15]
[334194757,1722823870229,-1199.26039967,0.00024,10]
[334194758,1722823870238,-500.0,0.00024,2]
[334194759,1722823870248,-500.0,0.00024,2]
[334194760,1722823870258,-500.0,0.00024,2]
[334194761,1722823870268,-500.0,0.00024,2]
[334194762,1722823870278,-500.0,0.00024,2]
[334194763,1722823870288,-350.82,0.00024,2]
[334194764,1722823870298,-500.0,0.00024,2]
[334194765,1722823870308,-500.0,0.00024,2]
[334194766,1722823870317,-635.58,0.00024,2]
[334194767,1722823870327,-7562.7001825,0.00024,2]
[334194768,1722823870337,-10391.0823099,0.00024,2]
[334194769,1722823870347,-423.240914,0.00024,2]
[334194770,1722823870356,-735.31359865,0.00024,2]
[334194771,1722823870366,-10000.0,0.00024,2]
[334194772,1722823870375,-10022.15741372,0.00024,2]
[334194773,1722823870392,-1104.37718062,0.0002401,2]
[334194774,1722823870402,-1800.0,0.00024045,2]
[334194775,1722823870413,-1000.0,0.00024054,2]
[334194776,1722823870423,-5000.0,0.00024061,2]
[334194777,1722823870438,-1800.0,0.00024062,2]
[334194778,1722823870453,-5000.0,0.00024065,2]
[334194779,1722823870463,-500.0,0.00024096,2]
[334194780,1722823870473,-1800.0,0.00024097,2]
[334194781,1722823870482,-500.0,0.00024109,2]
[334194782,1722823870493,-2000.0,0.00024109,2]
[334194783,1722823870502,-500.0,0.00024111,2]
[334194784,1722823870512,-500.0,0.00024114,2]
[334194785,1722823870522,-2538.38,0.00024142,2]
[334194786,1722823870534,-5000.0,0.00024145,2]
[334194787,1722823870544,-500.0,0.00024156,2]
[334194788,1722823870553,-500.0,0.00024167,2]
[334194789,1722823870563,-5000.0,0.0002418,2]
[334194790,1722823870573,-5000.0,0.00024202,2]
[334194791,1722823870582,-150.0,0.00024204,2]
[334194792,1722823870591,-1000.0,0.00024205,2]
[334194793,1722823870601,-150.0,0.00024211,2]
[334194794,1722823870611,-2502.96,0.00024214,2]
[334194795,1722823870621,-1800.0,0.00024215,2]
[334194796,1722823870632,-150.0,0.00024225,2]
[334194797,1722823870647,-500.0,0.00024235,7]
[334194798,1722823870657,-150.0,0.00024237,2]
[334194799,1722823870667,-500.0,0.00024237,2]
[334194800,1722823870676,-500.0,0.00024243,2]
[334194801,1722823870686,-500.0,0.00024252,2]
[334194802,1722823870696,-150.0,0.00024252,2]
[334194803,1722823870707,-500.0,0.00024255,2]
[334194804,1722823870717,-174.0,0.00024255,2]
[334194805,1722823870727,-500.0,0.00024261,2]
[334194806,1722823870737,-500.0,0.00024261,2]
[334194807,1722823870747,-500.0,0.00024267,2]
[334194808,1722823870758,-500.0,0.00024269,2]
[334194809,1722823870767,-5000.0,0.00024274,2]
[334194810,1722823870777,-500.0,0.00024278,2]
[334194811,1722823870788,-1800.0,0.00024284,2]
[334194812,1722823870798,-500.0,0.00024287,2]
[334194813,1722823870809,-500.0,0.00024288,2]
[334194814,1722823870820,-500.0,0.00024289,2]
[334194815,1722823870830,-5000.0,0.00024293,2]
[334194816,1722823870840,-500.0,0.00024296,2]
[334194817,1722823870850,-262.9901927,0.000243,2]
[334194818,1722823870860,-8300.0,0.000243,8]
[334194819,1722823870870,-500.0,0.00024305,2]
[334194820,1722823870883,-150.0,0.00024308,2]
[334194821,1722823870898,-508.94585423,0.00024311,2]
[334194822,1722823870908,-500.0,0.00024313,2]
[334194823,1722823870918,-5000.0,0.00024318,2]
[334194824,1722823870928,-500.0,0.0002432,2]
[334194825,1722823870938,-150.0,0.00024321,2]
[334194826,1722823870948,-500.0,0.00024322,2]
[334194827,1722823870958,-150.0,0.00024326,2]
[334194828,1722823870968,-500.0,0.0002433,2]
[334194829,1722823870977,-500.0,0.00024331,2]
[334194830,1722823870987,-612.92,0.00024332,2]
[334194831,1722823870998,-336.54,0.00024333,2]
[334194832,1722823871008,-500.0,0.0002434,2]
[334194833,1722823871018,-150.0,0.00024348,2]
[334194834,1722823871028,-500.0,0.00024348,2]
[334194835,1722823871039,-500.0,0.00024349,2]
[334194836,1722823871048,-150.0,0.0002435,2]
[334194837,1722823871058,-500.0,0.00024351,2]
[334194838,1722823871068,-150.0,0.00024357,2]
[334194839,1722823871078,-500.0,0.00024357,2]
[334194840,1722823871088,-150.0,0.00024358,2]
[334194841,1722823871099,-810.0,0.00024359,2]
[334194842,1722823871109,-500.0,0.00024366,2]
[334194843,1722823871173,-150.0,0.00024367,2]
[334194844,1722823871185,-500.0,0.00024372,2]
[334194845,1722823871195,-500.0,0.00024375,2]
[334194846,1722823871204,-150.0,0.00024377,2]
[334194847,1722823871214,-5000.0,0.00024379,2]
[334194848,1722823871223,-1888.20079578,0.00024383,2]
[334194849,1722823871232,-500.0,0.00024384,2]
[334194850,1722823871243,-500.0,0.00024384,2]
[334194851,1722823871252,-150.0,0.00024385,2]
[334194852,1722823871263,-480.36,0.00024386,2]
[334194853,1722823871273,-500.0,0.00024393,2]
[334194854,1722823871284,-500.0,0.00024393,2]
[334194855,1722823871293,-150.0,0.00024395,2]
[334194856,1722823871304,-150.0,0.000244,2]
[334194857,1722823871314,-1011.7,0.000244,2]
[334194858,1722823871325,-310.52,0.000244,2]
[334194859,1722823871336,-150.0,0.000244,2]
[334194860,1722823871346,-156.71973,0.000244,2]
[334194861,1722823871357,-1600.0,0.000244,8]
[334194862,1722823871368,-150.0,0.000244,9]
[334194863,1722823871378,-1500.0,0.000244,2]
[334194864,1722823871399,-500.0,0.00024401,2]
[334194865,1722823871409,-500.0,0.00024402,2]
[334194866,1722823871418,-150.0,0.00024402,2]
[334194867,1722823871429,-150.0,0.00024403,2]
[334194868,1722823871441,-284.83202442,0.00024406,2]
[334194869,1722823871451,-197.77435467,0.00024407,2]
[334194870,1722823871462,-284.83202442,0.00024408,2]
[334194871,1722823871479,-501.24117282,0.0002441,2]
[334194872,1722823871490,-500.0,0.0002441,2]
[334194873,1722823871500,-500.0,0.0002441,2]
[334194874,1722823871511,-5000.0,0.00024413,2]
[334194875,1722823871521,-150.0,0.00024414,2]
[334194876,1722823871532,-150.0,0.00024414,2]
[334194877,1722823871542,-469.77748496,0.00024417,2]
[334194878,1722823871555,-197.77435467,0.00024417,2]
[334194879,1722823871566,-500.0,0.00024419,2]